{"text_format":"2","workbook":"xlsx","n_sheets":1,"sheets":["Samenwonen"],"not_rendered":{"charts":0,"images":2,"macros":0,"external_links":0,"defined_names":0,"comments":0,"pivot_tables":0},"unopened":[],"bounds":{"document_bytes":16777216,"sheet_cells":100000,"run_cost":"one","rows_first":2000,"rows_last":500,"rows_between":2000,"halvings":0,"cell_chars":16384,"cell_head_chars":4096},"cells_cut":0,"cells_raw":0,"read":"whole","date_system":"1900"}

{"sheet":"Samenwonen","index":0,"n_rows":87,"n_cols":32,"rows_kept":87,"cut":false,"hidden":false,"merged":[[18,12,18,17],[86,1,89,7],[14,31,14,40],[18,31,18,40],[65,31,65,40],[41,31,41,40],[53,12,53,24],[55,12,55,24],[57,12,57,24],[61,12,61,17],[63,12,63,17],[65,12,65,17],[4,1,5,12],[33,12,33,24],[35,12,35,24],[51,12,51,24],[43,12,43,17],[41,12,41,17],[22,12,22,17],[14,12,14,17],[11,12,11,24],[16,12,16,24],[37,12,37,24],[39,12,39,24],[24,12,24,24],[29,12,29,24],[31,12,31,24],[20,12,20,17]]}
[]
[]
[null,"Budgetteren voor: Samenwonen"]
[]
[null,"Als u gaat samenwonen heeft dat invloed op uw inkomsten en uitgaven. Hieronder vindt u een handig hulpmiddel om de financiën van u en uw partner in kaart te brengen. Met tips bij posten waarbij u actie kan ondernemen. "]
[]
[]
[null,"Wat is uw naam?","Naam",{"$nulls":5},"Wat is de naam van uw partner?","Naam"]
[]
[null,"Vul hieronder in de groene velden uw verwachte kosten in, om zo uit te kunnen rekenen wat er voor u mogelijk is."]
[]
[null,"Inkomsten ","Gezamenlijk",null,null,null,{"$f":"IF(ISBLANK(C8),\"\",C8)","v":"Naam"},null,null,null,{"$f":"IF(ISBLANK(J8),\"\",J8)","v":"Naam"},null,"Aanvullende informatie "]
[]
[]
[null,"Netto loon / uitkering ",0,null,null,null,0,null,null,null,0,null,"Uw netto loon kunt u terugvinden op uw salarisstrook. Samenwonen kan effect hebben op de hoogte van uw uitkering. ",{"$nulls":17},"Netto loon / uitkering ","Uw netto loon kunt u terugvinden op uw salarisstrook. Samenwonen kan effect hebben op de hoogte van uw uitkering. Geef dan ook tijdig aan uw uitkeringsinstantie door dat u gaat samenwonen."]
[]
[null,"Netto loon / uitkering partner ",0,null,null,null,0,null,null,null,0]
[]
[null,"Toeslagen ",0,null,null,null,0,null,null,null,0,null,"Samenwonen kan invloed hebben op eventuele toeslagen die u ontvangt. ",{"$nulls":17},"Toeslagen ","Samenwonen kan invloed hebben op eventuele toeslagen die u ontvangt. Het is goed om dit te controleren bij de Belastingdienst om te voorkomen dat u later een bedrag moet terugbetalen. "]
[]
[null,"Kinderbijslag ",0,null,null,null,0,null,null,null,0,null,"Als u beiden kinderen heeft en gaat samenwonen, dan kan dat effect hebben op de kinderbijslag. "]
[]
[null,"Overige inkomsten ",0,null,null,null,0,null,null,null,0,null,"Huurinkomsten, dividend, winst uit onderneming etc. "]
[]
[null,"Totale inkomsten ",{"$f":"SUM(C15:C23)","v":0},null,null,null,{"$f":"SUM(G15:G23)","v":0},null,null,null,{"$f":"SUM(K15:K23)","v":0}]
[]
[null,"Vaste uitgaven","Gezamenlijk",null,null,null,{"$f":"C8","v":"Naam"},null,null,null,{"$f":"J8","v":"Naam"}]
[]
[]
[null,"Huur / hypotheek",0,null,null,"Alimentatie ",0,null,null,"Alimentatie ",0]
[]
[null,"Zorgkosten ",0,null,null,"Studieschuld ",0,null,null,"Studieschuld ",0]
[]
[null,"Vervoer ",0,null,null,"Sport ",0,null,null,"Sport ",0]
[]
[null,"Telefoon, televisie en internet ",0,null,null,"Partneralimentatie ",0,null,null,"Partneralimentatie ",0]
[]
[null,"Energie ",0,null,null,"Kinderalimentatie ",0,null,null,"Kinderalimentatie ",0]
[]
[null,"Water ",0,null,null,"…",0,null,null,"…",0]
[]
[null,"Abonnementen ",0,null,null,"…",0,null,null,"…",0,null,"Controleer als u gaat samenwonen of u abonnementen kan samenvoegen. ",{"$nulls":17},"Abonnementen ","Controleer als u gaat samenwonen of u abonnementen kan samenvoegen. Dit kan voordeliger zijn dan twee losse abonnementen aan te houden. "]
[]
[null,"Verzekeringen ",0,null,null,"…",0,null,null,"…",0,null,"Controleer als u of er verzekeringen zijn die u kunt samenvoegen of opzeggen. Zo voorkomt u dat u teveel betaalt."]
[]
[null,"Totale vaste uitgaven ",{"$f":"SUM(C30:C44)","v":0},null,null,null,{"$f":"SUM(G30:G44)","v":0},null,null,null,{"$f":"SUM(K30:K44)","v":0}]
[]
[]
[null,"Variabele uitgaven ","Gezamenlijk",null,null,null,{"$f":"C8","v":"Naam"},null,null,null,{"$f":"J8","v":"Naam"}]
[]
[]
[null,"Boodschappen ",0,null,null,"Kleding en schoenen",0,null,null,"Kleding en schoenen",0]
[]
[null,"Kleding en schoenen ",0,null,null,"Vrijetijdsuitgaven ",0,null,null,"Vrijetijdsuitgaven ",0]
[]
[null,"Inventaris ",0,null,null,"…",0,null,null,"…",0]
[]
[null,"Vrijetijdsuitgaven ",0,null,null,"…",0,null,null,"…",0]
[]
[null,"Sparen "]
[]
[null,"Onvoorziene kosten ",0,null,null,"Onvoorziene kosten ",0,null,null,"Onvoorziene kosten ",0,null,"Een vast potje dat u achter de hand houdt als er onverwacht iets kapot gaat. Zoals bijv. de wasmachine. "]
[]
[null,"Reserveringen",0,null,null,"Reserveringen",0,null,null,"Reserveringen",0,null,"Het is verstandig om geld te reserveren waarbij u alvast spaart voor bijv. de vervanging van uw auto of onderhoud aan het huis."]
[]
[null,"Spaardoel ",0,null,null,"Spaardoel",0,null,null,"Spaardoel",0,null,"Samen vermogen opbouwen kan op verschillende manieren.",{"$nulls":17},"Spaardoel ","Samen vermogen opbouwen kan op verschillende manieren. Of u wel of geen fiscale partners bent heeft gevolgen voor het opbouwen van vermogen. Meer informatie hierover vindt u op de website van de Belastingdienst. "]
[]
[null,"Totale variabele uitgaven ",{"$f":"SUM(C52:C66)","v":0},null,null,"Totaal",{"$f":"SUM(G52:G66)","v":0},null,null,"Totaal",{"$f":"SUM(K52:K66)","v":0}]
[]
[]
[null,"Resultaat"]
[]
[]
[]
[null,null,"Gezamenlijk",null,null,null,{"$f":"C8","v":"Naam"},null,null,null,{"$f":"J8","v":"Naam"},null,null,null,"Totaal"]
[]
[null,"Inkomsten",{"$f":"C25","v":0},null,null,null,{"$f":"G25","v":0},null,null,null,{"$f":"K25","v":0},null,null,null,{"$f":"C77+G77+K77","v":0}]
[]
[null,"Vaste uitgaven",{"$f":"C46","v":0},null,null,null,{"$f":"G46","v":0},null,null,null,{"$f":"K46","v":0},null,null,null,{"$f":"C79+G79+K79","v":0}]
[]
[null,"Variabele uitgaven",{"$f":"C68","v":0},null,null,null,{"$f":"G68","v":0},null,null,null,{"$f":"K68","v":0},null,null,null,{"$f":"C81+G81+K81","v":0}]
[]
[null,"Resultaat",{"$f":"C77-C79-C81","v":0},null,null,null,{"$f":"G77-G79-G81","v":0},null,null,null,{"$f":"K77-K79-K81","v":0},null,null,null,{"$f":"C83+G83+K83","v":0}]
[]
[]
[]
[null,"Disclaimer: Dit bestand is bedoeld om een indicatie te geven van de te verwachte kosten en is mogelijk niet volledig. Het bestand kan niet worden gebruikt als volwaardig boekhoudkundig instrument. Er kunnen geen rechten worden ontleend aan dit document"]